[Event "Indian Rapid Championship 2023-24"]
[Site "Nashik"]
[Date "2024.03.04"]
[Round "2.1"]
[White "Deshpande, Aniruddha"]
[Black "Ghosh, Diptayan"]
[Result "0-1"]
[ECO "E06"]
[WhiteElo "2301"]
[BlackElo "2559"]
[Annotator "TA"]
[PlyCount "75"]
[EventDate "2024.03.02"]
[EventType "swiss"]
[EventCountry "IND"]
[SourceTitle "playchess.com"]
[Source "ChessBase"]
[SourceQuality "1"]
[TimeControl "900+10"]

{[%evp 11,75,20,29,25,29,25,22,12,10,-27,-24,-30,-23,-26,-24,-37,-22,-34,-28,-75,-95,-98,-104,-97,-98,-88,-81,-98,-95,-167,-182,-178,-84,-106,-109,-121,0,-146,-45,-45,-31,-191,-176,-184,-129,-523,-520,-445,-104,-640,-647,-754,-477,-613,-565,-795,-505,-504,-482,-495,-486,-534,-514,-595,-474,-505]} 1. c4 {[%emt 0:00:02]} Nf6 {[%emt 0:00:16]} 2. g3 {[%emt 0:00:03]} e6 {[%emt 0:00:19]} 3. Bg2 {[%emt 0:00:04]} d5 {[%emt 0:00:01]} 4. d4 {[%emt 0:01:20]} Be7 {[%emt 0:00:03]} 5. Nf3 {[%emt 0:00:09]} O-O {[%emt 0:00:03]} 6. O-O {[%emt 0:00:24]} a5 {[%emt 0:00:03]} 7. Nc3 {[%emt 0:02:18]} c6 {[%emt 0:00:03][%cal Bc7c6,Bc6b5,Bb5b4][%mdl 32]} 8. Nd2 {[%emt 0:02:07]} b5 {[%emt 0:00:18]} 9. cxb5 {[%emt 0:01:54] The position is equal.} cxb5 {[%emt 0:00:02]} 10. e4 {[%emt 0:01:31]} b4 {[%emt 0:00:29]} 11. Na4 {[%emt 0:00:07]} Nc6 {[%emt 0:01:08]} 12. exd5 {[%emt 0:01:24]} Nxd5 {[%emt 0:01:37][%cal Oc8a6]} 13. Ne4 {[%emt 0:00:52]} Ba6 {[%emt 0:00:14]} 14. Re1 {[%emt 0:00:04]} Bb5 {[%emt 0:00:09]} 15. Be3 {[%emt 0:00:22]} (15. b3 $11 {is more appropriate.}) 15... e5 $17 {[%emt 0:01:56] aiming for ...Nxe3.} 16. Nec5 {[%emt 0:01:26]} Nxe3 {[%emt 0:02:22]} 17. fxe3 {[%emt 0:00:06]} exd4 {[%emt 0:00:21]} 18. exd4 {[%emt 0:00:14]} Bf6 {[%emt 0:00:54]} 19. d5 {[%emt 0:00:29]} Nd4 {[%emt 0:00:02]} 20. Ne4 {[%emt 0:01:05] [#]} (20. Kh1 $17) 20... Rc8 $1 $19 {[%emt 0:00:38]} (20... Qxd5 $2 21. Nxf6+ gxf6 22. Bxd5 $18) 21. Nac5 {[%emt 0:01:12]} Be5 {[%emt 0:01:27]} (21... Qxd5 $2 22. Nxf6+ gxf6 23. Bxd5 $18) (21... Ne2+ $19 {has better winning chances.} 22. Rxe2 Bxe2 23. Qxe2 Bd4+ (23... Qxd5 $2 24. Nxf6+ gxf6 25. Bxd5 $18) 24. Kh1 Rxc5 (24... Bxc5 $2 25. Rd1 $19) 25. Nxc5 Bxc5) 22. Rc1 {[%emt 0:00:36]} Qb6 $36 {[%emt 0:01:42][%mdl 2048] And now ...Qh6 would win. Black has strong initiative.} (22... Qxd5 $2 23. Nf6+ Bxf6 24. Bxd5 $18) 23. Kh1 {[%emt 0:00:15]} Rfd8 {[%emt 0:00:21]} ({Black should try} 23... Qh6 $17 {[%cal Od4e2] Hoping for ...Ne2!} 24. Qd2 Qxd2 25. Nxd2 Ne2) 24. Nb3 {[%emt 0:00:51] [#]} (24. d6 $11) 24... h6 {[%emt 0:02:03] Black has more active pieces.} (24... Nxb3 $1 $17 25. Rxc8 Rxc8 26. axb3 Bxb2) 25. Rxc8 $15 {[%emt 0:00:03]} Rxc8 {[%emt 0:00:01]} 26. Qh5 $2 {[%emt 0:00:10]} (26. Nxd4 $15 Bxd4 (26... Qxd4 27. Qxd4 Bxd4 28. Nd6 $14) 27. Nd6 Qxd6 28. Qxd4) 26... Re8 {[%emt 0:00:17]} 27. Nxd4 {[%emt 0:00:21]} Bxd4 {[%emt 0:00:52] A strong pair of Bishops.} ({Don't play} 27... Qxd4 28. b3 $17) 28. Qf5 $2 {[%emt 0:00:10][%mdl 8192]} (28. b3 $17 {is more resistant.}) 28... g6 $19 {[%emt 0:00:23]} 29. Qf4 {[%emt 0:00:02]} Kg7 $2 {[%emt 0:00:01]} (29... Bxb2 $2 30. Rd1 $19) (29... f5 $19 {is more deadly.} 30. h4 fxe4 31. Rxe4 Bxb2) 30. Rf1 $2 {[%emt 0:00:07][%mdl 8192]} Bxf1 {[%emt 0:00:02] Black is clearly winning.} (30... Bxb2 $2 {too greedy.} 31. Qxf7+ Kh8 32. d6 $18) 31. Bxf1 {[%emt 0:00:21]} Be5 {[%emt 0:00:08] Repels Nd6} 32. Qf3 {[%emt 0:00:03]} Qd4 {[%emt 0:00:06]} 33. b3 {[%emt 0:00:05]} Qxd5 {[%emt 0:00:13]} 34. Bc4 {[%emt 0:00:01]} Qd7 {[%emt 0:00:08]} 35. Nc5 {[%emt 0:00:14]} Qc7 {[%emt 0:00:11]} 36. Nd3 {[%emt 0:00:21]} Bd6 {[%emt 0:00:46]} 37. Qd5 {[%emt 0:00:08]} Qe7 {[%emt 0:00:19]} 38. Qd4+ {[%emt 0:00:09] Weighted Error Value: White=0.88/Black=0.60.  Loses game:     	White=2     	---        Missed win:     	---       	Black=1      Mistake:       	White=4     	Black=3      Inaccurate:     	White=2     	---        OK:         	White=9     	Black=11     Best:        	White=3     	Black=2} 0-1

[Event "Indian Rapid Championship 2023-24"]
[Site "Nashik"]
[Date "2024.03.04"]
[Round "2.2"]
[White "Sengupta, Deep"]
[Black "Mari Arul, S.."]
[Result "0-1"]
[ECO "C48"]
[WhiteElo "2500"]
[BlackElo "2136"]
[Annotator "RC"]
[PlyCount "106"]
[EventDate "2024.03.02"]
[EventType "swiss"]
[EventCountry "IND"]
[SourceTitle "playchess.com"]
[Source "ChessBase"]
[SourceQuality "1"]
[TimeControl "900+10"]

1. e4 {[%emt 0:00:02]} e5 {[%emt 0:00:02]} 2. Nf3 {[%emt 0:00:02]} Nc6 {[%emt 0:00:03]} 3. Nc3 {[%emt 0:00:05]} Nf6 {[%emt 0:00:10]} 4. Bb5 {[%emt 0:00:02]} Nd4 {[%emt 0:00:12]} 5. O-O {[%emt 0:00:10]} Nxb5 {[%emt 0:00:35]} 6. Nxb5 {[%emt 0:00:02]} c6 {[%emt 0:00:07]} 7. Nc3 {[%emt 0:00:01]} d6 {[%emt 0:00:03]} 8. d4 {[%emt 0:00:02]} Qc7 {[%emt 0:00:03]} 9. h3 {[%emt 0:00:44]} Be7 {[%emt 0:00:02]} 10. a4 {[%emt 0:00:01]} a5 {[%emt 0:00:45]} 11. Re1 {[%emt 0:00:29]} O-O {[%emt 0:00:04]} 12. b3 {[%emt 0:02:15]} Re8 {[%emt 0:00:33]} 13. Bb2 {[%emt 0:00:26]} Bf8 {[%emt 0:00:35]} 14. Qd3 {[%emt 0:00:24]} Bd7 {[%emt 0:01:21]} 15. Rad1 {[%emt 0:03:14]} Rad8 {[%emt 0:00:06]} 16. Nh4 {[%emt 0:01:23]} Bc8 {[%emt 0:00:40]} 17. dxe5 {[%emt 0:03:28]} dxe5 {[%emt 0:00:05]} 18. Qf3 {[%emt 0:00:00]} Bb4 {[%emt 0:01:51]} 19. Nf5 {[%emt 0:00:05]} Bxf5 {[%emt 0:00:06]} 20. Qxf5 {[%emt 0:00:02]} h6 {[%emt 0:02:46]} 21. Rf1 {[%emt 0:00:28]} Qe7 {[%emt 0:03:17]} 22. Na2 {[%emt 0:01:03]} Bd6 {[%emt 0:01:25]} 23. Nc1 {[%emt 0:00:38]} Nd7 {[%emt 0:01:11]} 24. Nd3 {[%emt 0:00:22]} f6 {[%emt 0:01:09]} 25. Bc3 {[%emt 0:00:22]} b6 {[%emt 0:00:11]} 26. Nb2 {[%emt 0:01:50]} Nc5 {[%emt 0:00:46]} 27. Nc4 {[%emt 0:01:20]} Bc7 {[%emt 0:00:01]} 28. Bd2 {[%emt 0:00:02]} Qd7 {[%emt 0:00:34]} 29. Qf3 {[%emt 0:00:12]} Ne6 {[%emt 0:00:40]} 30. Bxh6 {[%emt 0:00:42]} Nd4 {[%emt 0:00:03]} 31. Qe3 {[%emt 0:00:01]} Qf7 {[%emt 0:00:27]} 32. c3 {[%emt 0:00:15]} Nxb3 {[%emt 0:00:13]} 33. Qg3 {[%emt 0:00:01]} Nc5 {[%emt 0:00:06]} 34. Qg4 {[%emt 0:00:22]} Kh7 {[%emt 0:00:11]} 35. Qf5+ {[%emt 0:00:07]} g6 {[%emt 0:00:05]} 36. Qf3 {[%emt 0:00:07]} Kxh6 {[%emt 0:00:02]} 37. Ne3 {[%emt 0:00:01]} Kg7 {[%emt 0:00:02]} 38. Ng4 {[%emt 0:00:07]} Rxd1 {[%emt 0:00:05]} 39. Rxd1 {[%emt 0:00:01]} Rd8 {[%emt 0:00:01]} 40. Rb1 {[%emt 0:00:02]} Rd3 {[%emt 0:00:09]} 41. Qe2 {[%emt 0:00:01]} Qd7 {[%emt 0:00:09]} 42. Kh2 {[%emt 0:00:03]} Ne6 {[%emt 0:00:07]} 43. g3 {[%emt 0:00:02]} Ng5 {[%emt 0:00:15]} 44. Kg2 {[%emt 0:00:01]} Rd2 {[%emt 0:00:08]} 45. Qa6 {[%emt 0:00:23]} Nxe4 {[%emt 0:00:06]} 46. Rf1 {[%emt 0:00:13]} Ng5 {[%emt 0:00:08]} 47. c4 {[%emt 0:00:24]} f5 {[%emt 0:00:13]} 48. Ne3 {[%emt 0:00:01]} f4 {[%emt 0:00:03]} 49. Ng4 {[%emt 0:00:01]} fxg3 {[%emt 0:00:08]} 50. Kxg3 {[%emt 0:00:14]} e4+ {[%emt 0:00:02]} 51. Kg2 {[%emt 0:00:00]} e3 {[%emt 0:00:04]} 52. Qb7 {[%emt 0:00:22]} exf2 {[%emt 0:00:35]} 53. Rxf2 {[%emt 0:00:07]} Ne4 {[%emt 0:00:10]} 0-1

[Event "Indian Rapid Championship 2023-24"]
[Site "Nashik"]
[Date "2024.03.04"]
[Round "2.3"]
[White "Gandhi, Anish"]
[Black "Karthik Venkataraman"]
[Result "1/2-1/2"]
[ECO "C77"]
[WhiteElo "2012"]
[BlackElo "2609"]
[Annotator "TA"]
[PlyCount "157"]
[EventDate "2024.03.02"]
[EventType "swiss"]
[EventCountry "IND"]
[SourceTitle "playchess.com"]
[Source "ChessBase"]
[SourceQuality "1"]
[TimeControl "900+10"]

{[%evp 15,157,17,27,19,29,21,31,16,32,38,43,11,21,12,22,-6,18,-20,40,17,29,23,13,21,52,-17,-23,-24,-37,-57,-56,-85,-97,-88,-94,-89,-89,-116,-94,-90,-92,-87,-91,-99,-94,-85,-74,-112,-124,-147,-154,-154,-145,-193,-193,-201,-165,-194,-161,-167,0,-129,-130,-220,-218,-211,-198,-187,-147,-166,-165,-159,-151,-177,-183,-170,-181,-185,-166,-177,-134,-137,-8,-8,-8,-8,-8,-8,-8,-8,-8,-8,-8,-8,-8,-8,-8,-8,-8,-8,-8,-2737,-1657,-1008,-992,-29958,-29953,-29976,-29972,-29978,-29970,-29968,-29970,-29963,-29964,-29981,-29982,-29982,-29956,-29949,-29950,-5747,-4291,-29973,-29974,-29983,-29983,-29984,-29981,-29982,-29983,-29981,-29981,-29981,-29979,-29978,-5791,-5081,0,0,0,0,0,0]} 1. e4 {[%emt 0:00:03]} e5 {[%emt 0:00:01]} 2. Nf3 {[%emt 0:00:03]} Nc6 {[%emt 0:00:02]} 3. Bb5 {[%emt 0:00:02]} a6 {[%emt 0:00:02]} 4. Ba4 {[%emt 0:00:01]} Nf6 {[%emt 0:00:02]} 5. O-O {[%emt 0:00:03]} Be7 {[%emt 0:00:01]} 6. d3 {[%emt 0:00:01]} d6 {[%emt 0:00:03]} 7. c3 {[%emt 0:00:35]} O-O {[%emt 0:00:02]} 8. Nbd2 {[%emt 0:00:09][%cal Bb1d2,Bd2f1,Bf1g3,Bg3f5][%mdl 32]} Re8 {[%emt 0:00:03]} 9. Re1 {[%emt 0:00:04]} Bf8 {[%emt 0:00:02]} 10. Nf1 {[%emt 0:00:20]} b5 {[%emt 0:01:04]} 11. Bc2 {[%emt 0:00:14] White is slightly better.} Bb7 {[%emt 0:00:02]} 12. Ng3 {[%emt 0:00:36]} Nb8 {[%emt 0:00:44][%cal Bc6b8,Bb8d7,Bd7c5][%mdl 32]} 13. Nf5 {[%emt 0:01:30]} Nbd7 {[%emt 0:00:42]} 14. a4 {[%emt 0:00:12]} d5 {[%emt 0:00:09]} 15. Qe2 {[%emt 0:01:21]} Nc5 {[%emt 0:00:18]} 16. Ng3 {[%emt 0:03:48]} (16. axb5 {with more complications.} Qc8 17. Ng3 axb5 18. Rxa8 Qxa8 19. exd5 Bxd5 20. Nxe5 Bxg2 21. d4) 16... d4 {[%emt 0:02:54]} ({Better is} 16... Nxa4 $11 17. Bxa4 bxa4) 17. cxd4 {[%emt 0:01:53]} exd4 {[%emt 0:00:01][%cal Of6e4]} 18. axb5 {[%emt 0:00:33]} axb5 {[%emt 0:00:01]} 19. Rxa8 {[%emt 0:00:02]} Bxa8 {[%emt 0:00:02]} 20. Bd2 {[%emt 0:01:08] [#]} ({White should play} 20. Qd2 $14) 20... Bxe4 $1 $11 {[%emt 0:03:50]} 21. Nxe4 {[%emt 0:00:50]} Nfxe4 {[%emt 0:00:02]} 22. dxe4 {[%emt 0:00:05]} d3 {[%emt 0:00:01]} 23. Qd1 {[%emt 0:00:01]} dxc2 {[%emt 0:00:05]} 24. Qxc2 {[%emt 0:00:02]} Qd3 {[%emt 0:01:16]} 25. Qxd3 {[%emt 0:02:06]} Nxd3 {[%emt 0:00:02]} 26. Re3 {[%emt 0:00:13]} Nxb2 {[%emt 0:00:11]} 27. Rb3 {[%emt 0:01:06][%csl LRb2,LRb5]} Nc4 {[%emt 0:00:02]} 28. Rxb5 {[%emt 0:00:01]} Rxe4 {[%emt 0:00:02]} 29. Bb4 {[%emt 0:01:56]} Bxb4 {[%emt 0:03:03]} 30. Rxb4 {[%emt 0:00:01] Threatening mate with Rb8+.} Nd6 {[%emt 0:00:01]} 31. Rxe4 {[%emt 0:00:35]} Nxe4 $17 {[%emt 0:00:01][%mdl 4096] Endgame. KN-KN} 32. Ne5 {[%emt 0:00:04]} f6 {[%emt 0:00:09]} 33. Nc6 {[%emt 0:00:04]} Kf7 {[%emt 0:00:04]} 34. f3 {[%emt 0:00:02]} (34. Kf1 $17 {might work better.}) 34... Nd6 $19 {[%emt 0:00:13]} 35. Kf2 {[%emt 0:00:02]} Ke6 {[%emt 0:00:02]} 36. Ke3 {[%emt 0:00:07]} Kd5 {[%emt 0:00:21]} 37. Ne7+ {[%emt 0:00:09]} Ke6 {[%emt 0:00:48]} 38. Nc6 {[%emt 0:00:02]} Nf5+ {[%emt 0:00:12]} 39. Kd3 {[%emt 0:00:16]} (39. Ke4 $17) 39... Kd6 {[%emt 0:00:12]} 40. Na5 {[%emt 0:00:16]} Kd5 {[%emt 0:00:22] White must now prevent ...Nh4.} 41. Nc4 {[%emt 0:00:03]} c5 {[%emt 0:00:47]} 42. g3 {[%emt 0:00:16]} Nd4 {[%emt 0:00:13]} 43. f4 {[%emt 0:00:16]} Nf5 {[%emt 0:00:48]} 44. g4 {[%emt 0:00:44]} Nd6 {[%emt 0:00:01]} 45. Ne3+ {[%emt 0:00:02]} Ke6 {[%emt 0:00:01]} 46. h3 {[%emt 0:00:18]} g5 $1 {[%emt 0:00:16]} 47. Ng2 {[%emt 0:00:24]} h6 {[%emt 0:00:18]} 48. h4 {[%emt 0:00:02]} Kf7 {[%emt 0:01:16]} (48... gxh4 $1 $17 {And now ...h3 would win.} 49. Nxh4 Kd5) 49. fxg5 $11 {[%emt 0:00:11]} fxg5 {[%emt 0:00:01]} 50. hxg5 {[%emt 0:00:04]} hxg5 {[%emt 0:00:01]} 51. Ne1 $1 {[%emt 0:00:02]} Kf6 {[%emt 0:00:05] ...Ke5 would now be deadly.} (51... Ke6 $5 52. Nf3 $8 Kf6 $11) 52. Nf3 {[%emt 0:00:02]} Nf7 {[%emt 0:00:04]} 53. Ke4 {[%emt 0:00:07] Against Ne5} (53. Kc4 Ne5+ 54. Nxe5 Kxe5 55. Kxc5 Kf4 56. Kd4 Kxg4 57. Ke3 Kg3 58. Kd3 Kf2 59. Ke4 g4 60. Ke5 g3 61. Kf5 Kf3 62. Kf6 Ke4 63. Kg6 g2 64. Kg5 g1=Q+ (64... g1=R+ 65. Kf6 Kf4 66. Ke7 Ke5 67. Kd7 Rc1 68. Ke7 Rc7+ 69. Kd8 Ra7 70. Kc8 Kd6 71. Kb8 Rc7 72. Ka8 Kc6 73. Kb8 Kb6 74. Ka8 Rc8#) 65. Kf6 Qd4+ 66. Kg6 Qb6+ 67. Kg5 Qd6 68. Kh4 Qg6 69. Kh3 Kf3 70. Kh4 Qh6#) 53... Ke6 {[%emt 0:00:01]} 54. Ng1 {[%emt 0:00:26]} Nd6+ {[%emt 0:00:06]} 55. Ke3 {[%emt 0:00:05]} Kd5 {[%emt 0:00:09]} 56. Nf3 {[%emt 0:00:08]} Nf7 {[%emt 0:00:01]} 57. Ng1 $1 {[%emt 0:00:13]} c4 {[%emt 0:00:59]} 58. Ne2 $2 {[%emt 0:00:02][%mdl 8192]} (58. Nh3 $11) 58... Nh6 $1 $19 {[%emt 0:00:34]} 59. Kf3 {[%emt 0:00:16] [#]} Ke5 $1 {[%emt 0:00:01]} 60. Nc3 {[%emt 0:00:11]} Kd4 {[%emt 0:00:24]} 61. Ne4 {[%emt 0:00:31]} Nf7 {[%emt 0:00:01]} 62. Nd2 {[%emt 0:00:15]} Ne5+ {[%emt 0:00:08]} 63. Ke2 {[%emt 0:00:01]} c3 {[%emt 0:00:20]} ({Worse is} 63... Nxg4 64. Nf3+ Kc3 65. Nxg5 $11) 64. Nb3+ {[%emt 0:00:01]} Kc4 {[%emt 0:00:04]} 65. Na5+ {[%emt 0:00:21]} Kb4 {[%emt 0:00:04]} 66. Nb7 {[%emt 0:00:03]} Ka3 {[%emt 0:00:17][%cal Oc3c2]} 67. Nc5 {[%emt 0:00:14] [#]} Nd7 $1 {[%emt 0:01:28][%mdl 512]} 68. Nd3 {[%emt 0:00:19]} Nf6 {[%emt 0:00:05]} 69. Ne5 {[%emt 0:00:07] [#]} Nxg4 $1 {[%emt 0:00:24][%mdl 512]} 70. Nc4+ {[%emt 0:00:19]} (70. Nd3 Ka2) 70... Kb4 {[%emt 0:00:22]} 71. Nd6 {[%emt 0:00:01]} Nf6 {[%emt 0:00:04]} 72. Kd1 {[%emt 0:00:08]} g4 {[%emt 0:00:06]} 73. Nf5 {[%emt 0:00:03]} Ne4 {[%emt 0:00:06]} 74. Kc2 {[%emt 0:00:06]} g3 {[%emt 0:00:15]} 75. Ne3 {[%emt 0:00:01]} Kc5 {[%emt 0:00:13]} (75... Nf6 $142 76. Kd1 Kb3 77. Ke2 Nd5 78. Nxd5 c2 79. Nf4 c1=Q (79... c1=R 80. Kf3 $11) 80. Kf3 Qxf4+ 81. Kxf4 g2 82. Kg5 g1=Q+ (82... g1=R+ {is a self mate.} 83. Kf6 Re1 84. Kg6 Kc4 85. Kf6 Kd5 86. Kf5 Rf1+ 87. Kg4 Ke5 88. Kg3 Ke4 89. Kg4 Rg1+ 90. Kh4 Kf3 91. Kh5 Kf4 92. Kh6 Kf5 93. Kh7 Kf6 94. Kh8 Kf7 95. Kh7 Rh1#) 83. Kf6 Kc4 84. Kf5 Qg3 85. Ke6 Qf4 86. Kd7 Qf6 87. Ke8 Kc5 88. Kd7 Qf7+ 89. Kd8 Kd6 90. Kc8 Qc7#) 76. Kd3 {[%emt 0:00:03] [#]} Kb4 $2 {[%emt 0:00:06]} 77. Kxe4 $11 {[%emt 0:00:17] The position is equal.} g2 {[%emt 0:00:11]} 78. Nxg2 {[%emt 0:00:02]} c2 {[%emt 0:00:01]} 79. Ne1 {[%emt 0:00:01] Weighted Error Value: White=0.33/Black=0.14 (very precise) .  Loses game:     	White=1     	---        Mistake:       	White=3     	Black=2      Inaccurate:     	White=6     	Black=1      OK:         	White=19    	Black=19     Best:        	White=1     	Black=3      Strong:       	White=2     	Black=1} 1/2-1/2

[Event "Indian Rapid Championship 2023-24"]
[Site "Nashik"]
[Date "2024.03.04"]
[Round "2.4"]
[White "Aronyak Ghosh"]
[Black "Dinesh Rajan M"]
[Result "1-0"]
[ECO "A30"]
[WhiteElo "2517"]
[BlackElo "1948"]
[Annotator "TA"]
[PlyCount "107"]
[EventDate "2024.03.02"]
[EventType "swiss"]
[EventCountry "IND"]
[SourceTitle "playchess.com"]
[Source "ChessBase"]
[SourceQuality "1"]
[TimeControl "900+10"]

{[%evp 16,107,15,23,78,76,81,87,105,98,99,75,101,56,72,76,64,59,67,66,77,51,114,105,216,218,218,122,130,110,111,114,131,135,131,97,101,109,100,105,104,-14,-17,-12,-17,-18,-12,-11,-7,-17,-18,-13,-14,-14,80,79,72,70,87,87,331,336,299,339,306,256,252,235,1162,1153,1077,981,11926,6419,12844,5713,29954,29954,29947,6115,29959,12844,29971,29973,29970,29971,29967,29968,5414,12843,29974,29977,29969,29969]} 1. Nf3 {[%emt 0:00:08]} Nf6 {[%emt 0:00:05]} 2. g3 {[%emt 0:00:10]} g6 {[%emt 0:00:06]} 3. b3 {[%emt 0:00:09]} Bg7 {[%emt 0:00:09]} 4. Bb2 {[%emt 0:00:02]} b6 {[%emt 0:00:22]} 5. Bg2 {[%emt 0:00:08]} Bb7 {[%emt 0:00:02]} 6. O-O {[%emt 0:00:04]} O-O {[%emt 0:00:04]} 7. c4 {[%emt 0:00:10]} c5 {[%emt 0:00:06]} 8. d4 {[%emt 0:00:19]} cxd4 {[%emt 0:00:07]} 9. Qxd4 {[%emt 0:00:16]} Nh5 {[%emt 0:02:43]} (9... Nc6 $11 10. Qe3 d5) 10. Qd2 $16 {[%emt 0:00:14]} d6 {[%emt 0:00:37]} 11. Bxg7 {[%emt 0:00:27]} Nxg7 {[%emt 0:00:05] White is better.} 12. Nc3 {[%emt 0:00:25]} Nd7 {[%emt 0:00:06]} 13. Rac1 {[%emt 0:00:48]} Rc8 {[%emt 0:00:50]} 14. Nd5 {[%emt 0:00:20]} e6 {[%emt 0:01:11]} 15. Nc3 {[%emt 0:01:43]} Nf6 {[%emt 0:01:20]} 16. Rfd1 {[%emt 0:02:39]} d5 {[%emt 0:02:03]} 17. Ne5 {[%emt 0:01:12][%cal Rc4d5]} Qe7 {[%emt 0:01:01]} 18. Qg5 {[%emt 0:00:19]} Rfe8 {[%emt 0:00:50]} (18... Nf5 $14) 19. Nb5 {[%emt 0:02:47] White has more active pieces.} (19. cxd5 $6 exd5 20. Nf3 Rc5 $11) 19... Nd7 {[%emt 0:03:31]} (19... a5 $16) 20. Qxe7 $18 {[%emt 0:01:30]} Rxe7 {[%emt 0:00:02]} 21. Nxd7 {[%emt 0:01:17]} (21. cxd5 $18 Rxc1 (21... Nxe5 $2 {too greedy.} 22. d6 $18) 22. Rxc1 exd5 (22... Nxe5 $2 23. d6 $18) 23. Rc7 Rxe5 24. Rxb7 (24. Rxd7 Bc6 $18)) 21... Rxd7 $16 {[%emt 0:00:01]} 22. cxd5 {[%emt 0:00:11]} Rxc1 {[%emt 0:01:26]} 23. Rxc1 {[%emt 0:00:02]} exd5 {[%emt 0:00:07]} 24. Nxa7 {[%emt 0:00:08]} Ne6 {[%emt 0:00:27]} 25. Nb5 {[%emt 0:01:26] Prevents Nd4.} Ba6 {[%emt 0:00:07]} 26. Nc3 {[%emt 0:00:02]} Rc7 {[%emt 0:01:13] aiming for ...d4.} 27. Bxd5 {[%emt 0:01:03] Threatens to win with a4.} Nd4 {[%emt 0:00:05][%cal Oc7c3]} 28. Kg2 {[%emt 0:00:04]} (28. Rd1 $1 $16) 28... Nb5 $11 {[%emt 0:00:43]} (28... Bxe2 $2 {is the wrong capture.} 29. Nxe2 Rxc1 30. Nxc1 $18) 29. Bc4 {[%emt 0:00:18]} Bb7+ {[%emt 0:00:04]} 30. f3 {[%emt 0:00:47]} Nxc3 {[%emt 0:00:02]} 31. Rxc3 {[%emt 0:00:01] Hoping for Rd3.} b5 {[%emt 0:00:01]} 32. Bxf7+ {[%emt 0:00:05]} Rxf7 {[%emt 0:00:01][%mdl 4096] Endgame. KRB-KR} 33. Rc5 {[%emt 0:00:02]} Rd7 {[%emt 0:00:27]} 34. Kf2 {[%emt 0:00:34]} b4 {[%emt 0:00:22]} (34... Rd2 $11) 35. Rb5 $16 {[%emt 0:00:38]} Ba6 {[%emt 0:00:19] [#]} 36. Rb6 {[%emt 0:00:01]} ({Reject} 36. Rxb4 Rd2 $15) 36... Ra7 {[%emt 0:00:03]} 37. Rxb4 {[%emt 0:00:02] And now Ra4 would win.} Bb7 $2 {[%emt 0:00:17] [#] This costs Black the game.} (37... Re7 $16) 38. Ra4 $1 $18 {[%emt 0:00:20]} Rxa4 {[%emt 0:00:08]} 39. bxa4 {[%emt 0:00:01] KB-KP} Kf7 {[%emt 0:00:06]} 40. e4 {[%emt 0:00:07]} Ke6 {[%emt 0:00:13]} 41. Ke3 {[%emt 0:00:02]} g5 $2 {[%emt 0:00:04]} (41... Ba6 42. f4 Bc8) 42. Kd4 {[%emt 0:00:06]} Kd6 {[%emt 0:00:19]} 43. f4 {[%emt 0:00:05][%cal Bf3f4,Bf4f5,Bf5f6][%mdl 32]} g4 {[%emt 0:00:13]} 44. f5 {[%emt 0:00:08]} Ba6 {[%emt 0:00:11]} 45. e5+ {[%emt 0:00:05]} (45. a5 $142 Be2 46. e5+ Kd7 47. e6+ Kd6 48. Ke3) 45... Kc6 {[%emt 0:00:03]} 46. f6 {[%emt 0:00:16]} Kd7 {[%emt 0:00:05]} 47. a5 {[%emt 0:00:02] Intending Kc5 and mate.} Ke6 {[%emt 0:00:05]} 48. Kc5 {[%emt 0:00:07] Kb6 would kill now.} Kd7 {[%emt 0:00:21]} 49. Kb6 {[%emt 0:00:04]} Bc4 {[%emt 0:00:02]} 50. a6 {[%emt 0:00:20]} Ke6 {[%emt 0:00:12]} 51. a7 {[%emt 0:00:06]} Bd5 {[%emt 0:00:02]} 52. Kc7 {[%emt 0:00:12]} (52. a4 $142 h6 53. Kc7) 52... Kxe5 {[%emt 0:00:29] [#]} 53. f7 $1 {[%emt 0:00:06][%mdl 512]} Bxf7 {[%emt 0:00:06]} 54. a8=Q {[%emt 0:00:03] Weighted Error Value: White=0.11 (very precise) /Black=0.87.  Loses game:     	---       	Black=1      Mistake:       	White=2     	Black=4      Inaccurate:     	White=1     	Black=1      OK:         	White=16    	Black=10     Best:        	White=3     	Black=4      Strong:       	White=1     	---} 1-0